[Event "Late-Titled-Tuesday-Blitz-October-03-2023"]
[Site "Chess.com"]
[Date "2023.10.03"]
[Round "7"]
[White "Doudou2015"]
[Black "GAusal"]
[Result "0-1"]
[WhiteElo "2157"]
[BlackElo "2276"]
[TimeControl "180+1"]
[EndTime "15:14:33 PDT"]
[Termination "GAusal won on time"]

1. b3 {[%clk 0:03:00.9]} 1... d5 {[%clk 0:02:51.5]} 2. Bb2 {[%clk 0:03:01.8]}
2... c5 {[%clk 0:02:48.7]} 3. e3 {[%clk 0:03:02]} 3... Nc6 {[%clk 0:02:48.5]} 4.
f4 {[%clk 0:03:00.9]} 4... Nf6 {[%clk 0:02:48.1]} 5. Nf3 {[%clk 0:03:00.7]} 5...
g6 {[%clk 0:02:48.2]} 6. Bb5 {[%clk 0:02:54.7]} 6... Bg7 {[%clk 0:02:47.2]} 7.
Bxc6+ {[%clk 0:02:54.5]} 7... bxc6 {[%clk 0:02:46.8]} 8. Ne5 {[%clk 0:02:55.4]}
8... Qc7 {[%clk 0:02:45.5]} 9. O-O {[%clk 0:02:56.3]} 9... O-O {[%clk 0:02:45]}
10. d3 {[%clk 0:02:55.6]} 10... Nd7 {[%clk 0:02:43.3]} 11. d4 {[%clk 0:02:38.2]}
11... cxd4 {[%clk 0:02:42]} 12. exd4 {[%clk 0:02:39.1]} 12... c5 {[%clk
0:02:40.8]} 13. c3 {[%clk 0:02:27.9]} 13... Ba6 {[%clk 0:02:36.2]} 14. Rf3
{[%clk 0:02:24]} 14... Nf6 {[%clk 0:02:28.7]} 15. Nd2 {[%clk 0:02:20.7]} 15...
h5 {[%clk 0:02:22.9]} 16. dxc5 {[%clk 0:02:20.1]} 16... Qxc5+ {[%clk 0:02:21.6]}
17. Kh1 {[%clk 0:02:19.5]} 17... Ne4 {[%clk 0:02:11.4]} 18. Qe1 {[%clk
0:01:24.9]} 18... Nxd2 {[%clk 0:01:42.5]} 19. Qxd2 {[%clk 0:01:25.8]} 19... Rad8
{[%clk 0:01:37.3]} 20. a4 {[%clk 0:01:20.5]} 20... e6 {[%clk 0:01:35.6]} 21. Ba3
{[%clk 0:01:19.6]} 21... Qc7 {[%clk 0:01:23.3]} 22. Bxf8 {[%clk 0:01:19.3]}
22... Rxf8 {[%clk 0:01:21.3]} 23. Rc1 {[%clk 0:01:13]} 23... Bxe5 {[%clk
0:01:17.8]} 24. fxe5 {[%clk 0:01:12.4]} 24... Qxe5 {[%clk 0:01:18]} 25. c4
{[%clk 0:01:08.7]} 25... dxc4 {[%clk 0:01:13.4]} 26. bxc4 {[%clk 0:01:09.6]}
26... Bb7 {[%clk 0:01:12]} 27. Rd3 {[%clk 0:01:02.1]} 27... h4 {[%clk
0:01:05.2]} 28. c5 {[%clk 0:00:59.9]} 28... Bd5 {[%clk 0:01:01.3]} 29. c6 {[%clk
0:00:58.4]} 29... Qc7 {[%clk 0:00:53.8]} 30. Qg5 {[%clk 0:00:46.4]} 30... Rb8
{[%clk 0:00:49.6]} 31. Qxh4 {[%clk 0:00:36.1]} 31... Rb2 {[%clk 0:00:48.7]} 32.
Rxd5 {[%clk 0:00:23]} 32... exd5 {[%clk 0:00:45.2]} 33. Qd4 {[%clk 0:00:16.2]}
33... Rb6 {[%clk 0:00:23]} 34. Qxd5 {[%clk 0:00:15.8]} 34... Kg7 {[%clk
0:00:17.8]} 35. Qd7 {[%clk 0:00:12.1]} 35... Qxd7 {[%clk 0:00:17.1]} 36. cxd7
{[%clk 0:00:12.4]} 36... Rd6 {[%clk 0:00:17.3]} 37. g3 {[%clk 0:00:10.3]} 37...
Rxd7 {[%clk 0:00:17.3]} 38. Rc4 {[%clk 0:00:09.2]} 38... f5 {[%clk 0:00:17.1]}
39. Kg2 {[%clk 0:00:10.1]} 39... Kf6 {[%clk 0:00:16.9]} 40. Kf3 {[%clk
0:00:10.6]} 40... Ke5 {[%clk 0:00:14.6]} 41. h4 {[%clk 0:00:10.1]} 41... Rd3+
{[%clk 0:00:13.4]} 42. Kf2 {[%clk 0:00:09.1]} 42... Ra3 {[%clk 0:00:11.7]} 43.
g4 {[%clk 0:00:04.7]} 43... f4 {[%clk 0:00:11.3]} 44. h5 {[%clk 0:00:03.6]}
44... gxh5 {[%clk 0:00:10.5]} 45. gxh5 {[%clk 0:00:04.5]} 45... Rh3 {[%clk
0:00:10.1]} 46. Rc5+ {[%clk 0:00:03.7]} 46... Ke4 {[%clk 0:00:09.9]} 47. Ra5
{[%clk 0:00:02.3]} 47... Rh2+ {[%clk 0:00:10]} 48. Kg1 {[%clk 0:00:02.2]} 48...
Rh4 {[%clk 0:00:08.3]} 49. Rxa7 {[%clk 0:00:01.7]} 49... Kf3 {[%clk 0:00:08.5]}
0-1

[Event "Late-Titled-Tuesday-Blitz-October-03-2023"]
[Site "Chess.com"]
[Date "2023.10.03"]
[Round "7"]
[White "FM_Kappeler"]
[Black "Mariia89"]
[Result "0-1"]
[WhiteElo "2251"]
[BlackElo "2066"]
[TimeControl "180+1"]
[EndTime "15:14:36 PDT"]
[Termination "Mariia89 won by checkmate"]

1. d4 {[%clk 0:03:00.9]} 1... Nf6 {[%clk 0:02:59.8]} 2. c4 {[%clk 0:03:00.3]}
2... c5 {[%clk 0:03:00.1]} 3. d5 {[%clk 0:02:57.6]} 3... b5 {[%clk 0:03:00.6]}
4. cxb5 {[%clk 0:02:57.7]} 4... a6 {[%clk 0:03:00.8]} 5. bxa6 {[%clk 0:02:56.9]}
5... Bxa6 {[%clk 0:03:01.7]} 6. Nf3 {[%clk 0:02:53.5]} 6... d6 {[%clk
0:03:01.7]} 7. Nc3 {[%clk 0:02:51.3]} 7... g6 {[%clk 0:03:01.9]} 8. g3 {[%clk
0:02:51.1]} 8... Bg7 {[%clk 0:03:01.6]} 9. Bg2 {[%clk 0:02:51]} 9... O-O {[%clk
0:03:01.7]} 10. O-O {[%clk 0:02:50.7]} 10... Nbd7 {[%clk 0:03:01.8]} 11. Rb1
{[%clk 0:02:49.9]} 11... Qa5 {[%clk 0:03:02.1]} 12. Bd2 {[%clk 0:02:44.7]} 12...
Rfb8 {[%clk 0:03:01.9]} 13. b3 {[%clk 0:02:36.5]} 13... Qa3 {[%clk 0:02:49.5]}
14. Ne1 {[%clk 0:02:35.4]} 14... Ne8 {[%clk 0:02:37.9]} 15. Nc2 {[%clk
0:02:34.7]} 15... Qa5 {[%clk 0:02:38.2]} 16. Na4 {[%clk 0:02:15]} 16... Qc7
{[%clk 0:02:28.5]} 17. Ne3 {[%clk 0:02:09.9]} 17... Qa7 {[%clk 0:02:03.1]} 18.
Nb2 {[%clk 0:01:56]} 18... Nc7 {[%clk 0:02:00.3]} 19. Bh3 {[%clk 0:01:42.2]}
19... Nb6 {[%clk 0:01:56.5]} 20. a4 {[%clk 0:01:41.5]} 20... Nbxd5 {[%clk
0:01:53.2]} 21. Nxd5 {[%clk 0:01:33.9]} 21... Nxd5 {[%clk 0:01:53.1]} 22. Bg5
{[%clk 0:01:31]} 22... Bb7 {[%clk 0:01:47.3]} 23. Qd2 {[%clk 0:01:04]} 23... Nc3
{[%clk 0:01:44.4]} 24. Rbc1 {[%clk 0:00:58.6]} 24... Ne4 {[%clk 0:01:43.7]} 25.
Qe3 {[%clk 0:00:44.4]} 25... Nxg5 {[%clk 0:01:43.6]} 26. Qxg5 {[%clk 0:00:44.5]}
26... Bxb2 {[%clk 0:01:41.2]} 27. Rc2 {[%clk 0:00:42.3]} 27... Bf6 {[%clk
0:01:41.6]} 28. Qh6 {[%clk 0:00:40.1]} 28... Bd5 {[%clk 0:01:29.1]} 29. Rd2
{[%clk 0:00:28.1]} 29... Bxb3 {[%clk 0:01:25.6]} 30. Bg2 {[%clk 0:00:26.5]}
30... d5 {[%clk 0:01:22]} 31. e4 {[%clk 0:00:20.8]} 31... Qxa4 {[%clk
0:01:06.5]} 32. exd5 {[%clk 0:00:19.2]} 32... Ra6 {[%clk 0:01:00.5]} 33. Qf4
{[%clk 0:00:18.3]} 33... Qxf4 {[%clk 0:00:54.8]} 34. gxf4 {[%clk 0:00:18.6]}
34... c4 {[%clk 0:00:45.7]} 35. Rc1 {[%clk 0:00:17.2]} 35... Ra2 {[%clk
0:00:34.8]} 36. Rxa2 {[%clk 0:00:13.1]} 36... Bxa2 {[%clk 0:00:34.3]} 37. Bf1
{[%clk 0:00:13.7]} 37... c3 {[%clk 0:00:28.9]} 38. Bd3 {[%clk 0:00:12.2]} 38...
Rd8 {[%clk 0:00:25.5]} 39. Be4 {[%clk 0:00:11.7]} 39... Bxd5 {[%clk 0:00:24.5]}
40. Bc2 {[%clk 0:00:11.2]} 40... Bc4 {[%clk 0:00:21.3]} 41. Kg2 {[%clk
0:00:08.9]} 41... Kg7 {[%clk 0:00:20.2]} 42. Kf3 {[%clk 0:00:09.2]} 42... Bd4
{[%clk 0:00:16.7]} 43. Ke4 {[%clk 0:00:09.3]} 43... Bf6 {[%clk 0:00:15.2]} 44.
f3 {[%clk 0:00:09]} 44... Rd2 {[%clk 0:00:14.1]} 45. Ke3 {[%clk 0:00:08.7]}
45... Rxh2 {[%clk 0:00:14]} 46. Be4 {[%clk 0:00:07.5]} 46... Re2# {[%clk
0:00:13.8]} 0-1

[Event "Late-Titled-Tuesday-Blitz-October-03-2023"]
[Site "Chess.com"]
[Date "2023.10.03"]
[Round "7"]
[White "KaydenTroffChess"]
[Black "Fandorine"]
[Result "1-0"]
[WhiteElo "2770"]
[BlackElo "2926"]
[TimeControl "180+1"]
[EndTime "15:14:37 PDT"]
[Termination "KaydenTroffChess won by resignation"]

1. d4 {[%clk 0:03:00.9]} 1... Nf6 {[%clk 0:02:58.3]} 2. Nf3 {[%clk 0:03:01.5]}
2... g6 {[%clk 0:02:58.5]} 3. Bg5 {[%clk 0:03:01.5]} 3... Bg7 {[%clk 0:02:58.7]}
4. Nbd2 {[%clk 0:03:00.8]} 4... O-O {[%clk 0:02:59.2]} 5. e3 {[%clk 0:03:01.2]}
5... d6 {[%clk 0:02:58.9]} 6. c3 {[%clk 0:02:59.5]} 6... Nc6 {[%clk 0:02:57.3]}
7. Bc4 {[%clk 0:02:59.5]} 7... Qe8 {[%clk 0:02:57.4]} 8. O-O {[%clk 0:02:56.6]}
8... e5 {[%clk 0:02:57.3]} 9. dxe5 {[%clk 0:02:49.2]} 9... Nxe5 {[%clk 0:02:54]}
10. Nxe5 {[%clk 0:02:48.8]} 10... Qxe5 {[%clk 0:02:54.9]} 11. Bf4 {[%clk
0:02:45.3]} 11... Qe7 {[%clk 0:02:51.2]} 12. Be2 {[%clk 0:02:42.9]} 12... Bf5
{[%clk 0:02:44.6]} 13. Bf3 {[%clk 0:02:42.5]} 13... d5 {[%clk 0:02:31.4]} 14. c4
{[%clk 0:02:37.8]} 14... Rfd8 {[%clk 0:02:24]} 15. Qb3 {[%clk 0:02:32.4]} 15...
c6 {[%clk 0:02:20.4]} 16. Rad1 {[%clk 0:02:25.3]} 16... h6 {[%clk 0:02:15.3]}
17. h3 {[%clk 0:02:21.1]} 17... Be6 {[%clk 0:02:05.2]} 18. Qc2 {[%clk 0:02:03]}
18... dxc4 {[%clk 0:02:01.6]} 19. Nxc4 {[%clk 0:02:02.2]} 19... Qc5 {[%clk
0:02:01.7]} 20. Rc1 {[%clk 0:01:55.5]} 20... Nd5 {[%clk 0:01:50.1]} 21. Bxd5
{[%clk 0:01:36.6]} 21... Bxd5 {[%clk 0:01:42.9]} 22. Nd6 {[%clk 0:01:29.8]}
22... Qxc2 {[%clk 0:01:36.9]} 23. Rxc2 {[%clk 0:01:29.9]} 23... Rd7 {[%clk
0:01:37.4]} 24. b3 {[%clk 0:01:24.7]} 24... a5 {[%clk 0:01:21.1]} 25. Nc4 {[%clk
0:01:04.7]} 25... Bxc4 {[%clk 0:01:15.1]} 26. bxc4 {[%clk 0:01:04.7]} 26... b5
{[%clk 0:01:15.7]} 27. cxb5 {[%clk 0:01:03.6]} 27... cxb5 {[%clk 0:01:16.6]} 28.
Rfc1 {[%clk 0:00:46.4]} 28... b4 {[%clk 0:01:13.6]} 29. Rc8+ {[%clk 0:00:45.6]}
29... Rd8 {[%clk 0:01:00.9]} 30. Rxa8 {[%clk 0:00:35]} 30... Rxa8 {[%clk
0:00:58.9]} 31. Bd6 {[%clk 0:00:30.7]} 31... Bc3 {[%clk 0:00:46.9]} 32. Kf1
{[%clk 0:00:20.6]} 32... f5 {[%clk 0:00:46.3]} 33. Ke2 {[%clk 0:00:19.4]} 33...
Kf7 {[%clk 0:00:47]} 34. Rd1 {[%clk 0:00:19.2]} 34... Rd8 {[%clk 0:00:35.3]} 35.
Rd3 {[%clk 0:00:17.6]} 35... Ke6 {[%clk 0:00:23.7]} 36. Bc7 {[%clk 0:00:14.4]}
36... Rxd3 {[%clk 0:00:24.2]} 37. Kxd3 {[%clk 0:00:15]} 37... a4 {[%clk
0:00:24.9]} 38. Kc4 {[%clk 0:00:14.1]} 38... Be1 {[%clk 0:00:24]} 39. f3 {[%clk
0:00:13.5]} 39... h5 {[%clk 0:00:20]} 40. Bb6 {[%clk 0:00:08.7]} 40... Bd2
{[%clk 0:00:10.6]} 41. Bc5 {[%clk 0:00:08.1]} 41... g5 {[%clk 0:00:07.9]} 42.
Bxb4 {[%clk 0:00:06.5]} 42... Bxe3 {[%clk 0:00:08.3]} 43. Kb5 {[%clk 0:00:07.1]}
43... Kd5 {[%clk 0:00:07.5]} 44. Kxa4 {[%clk 0:00:07.3]} 44... Kc4 {[%clk
0:00:08.2]} 45. Be7 {[%clk 0:00:06.2]} 45... Kd3 {[%clk 0:00:08.1]} 46. Kb5
{[%clk 0:00:04.8]} 46... Ke2 {[%clk 0:00:08.6]} 47. a4 {[%clk 0:00:05.3]} 47...
Kf1 {[%clk 0:00:08.8]} 48. a5 {[%clk 0:00:06]} 48... Kxg2 {[%clk 0:00:08.4]} 49.
a6 {[%clk 0:00:06.4]} 49... g4 {[%clk 0:00:07.9]} 50. hxg4 {[%clk 0:00:06.3]}
50... hxg4 {[%clk 0:00:07.9]} 51. fxg4 {[%clk 0:00:06.6]} 51... f4 {[%clk
0:00:07.7]} 52. Bc5 {[%clk 0:00:06.9]} 52... Bxc5 {[%clk 0:00:02.3]} 53. Kxc5
{[%clk 0:00:07.8]} 53... f3 {[%clk 0:00:03.1]} 54. a7 {[%clk 0:00:08.3]} 54...
f2 {[%clk 0:00:04]} 55. a8=Q+ {[%clk 0:00:09]} 55... Kg1 {[%clk 0:00:04.5]} 56.
Qf8 {[%clk 0:00:09.3]} 1-0

[Event "Late-Titled-Tuesday-Blitz-October-03-2023"]
[Site "Chess.com"]
[Date "2023.10.03"]
[Round "7"]
[White "Vegan4future"]
[Black "matagordo"]
[Result "1-0"]
[WhiteElo "2406"]
[BlackElo "2222"]
[TimeControl "180+1"]
[EndTime "15:14:37 PDT"]
[Termination "Vegan4future won by resignation"]

1. d4 {[%clk 0:02:59.6]} 1... e6 {[%clk 0:02:58.7]} 2. Nc3 {[%clk 0:02:49.7]}
2... Nf6 {[%clk 0:02:57]} 3. Bf4 {[%clk 0:02:48.9]} 3... b6 {[%clk 0:02:51.8]}
4. e4 {[%clk 0:02:43.4]} 4... d5 {[%clk 0:02:48.7]} 5. Nb5 {[%clk 0:02:23.1]}
5... Na6 {[%clk 0:02:34.1]} 6. e5 {[%clk 0:02:07.7]} 6... Nd7 {[%clk 0:02:29.7]}
7. Nf3 {[%clk 0:02:02.4]} 7... Be7 {[%clk 0:02:29.2]} 8. Bd3 {[%clk 0:01:53.2]}
8... O-O {[%clk 0:02:28.8]} 9. h4 {[%clk 0:01:50.9]} 9... f5 {[%clk 0:02:18.4]}
10. exf6 {[%clk 0:01:43.6]} 10... Nxf6 {[%clk 0:02:18.4]} 11. Qe2 {[%clk
0:01:28.5]} 11... Nb4 {[%clk 0:02:14.6]} 12. Nxc7 {[%clk 0:01:19.4]} 12... Nxd3+
{[%clk 0:02:14.1]} 13. cxd3 {[%clk 0:01:12.3]} 13... Bd7 {[%clk 0:02:01.9]} 14.
Nxe6 {[%clk 0:01:10.2]} 14... Bxe6 {[%clk 0:01:59.6]} 15. Qxe6+ {[%clk
0:01:11.1]} 15... Kh8 {[%clk 0:02:00.3]} 16. Ne5 {[%clk 0:01:08.9]} 16... Qe8
{[%clk 0:01:43.3]} 17. O-O {[%clk 0:01:07.9]} 17... Bb4 {[%clk 0:01:35.4]} 18.
Qxe8 {[%clk 0:01:05.9]} 18... Raxe8 {[%clk 0:01:36.3]} 19. a3 {[%clk 0:00:59.7]}
19... Be7 {[%clk 0:01:23.6]} 20. Rac1 {[%clk 0:00:55.9]} 20... Nh5 {[%clk
0:01:23.8]} 21. Bh2 {[%clk 0:00:55.9]} 21... Bxh4 {[%clk 0:01:20.7]} 22. Rc7
{[%clk 0:00:50.3]} 22... a5 {[%clk 0:01:11.9]} 23. f4 {[%clk 0:00:36.8]} 23...
Re6 {[%clk 0:01:06.8]} 24. g4 {[%clk 0:00:31.9]} 24... Nf6 {[%clk 0:01:02.8]}
25. g5 {[%clk 0:00:31.3]} 25... Nh5 {[%clk 0:01:00]} 26. Kg2 {[%clk 0:00:30]}
26... h6 {[%clk 0:00:56.2]} 27. gxh6 {[%clk 0:00:27.4]} 27... Rxh6 {[%clk
0:00:43.4]} 28. Nf7+ {[%clk 0:00:27.1]} 28... Rxf7 {[%clk 0:00:44.1]} 29. Rxf7
{[%clk 0:00:28]} 29... Rg6+ {[%clk 0:00:44.4]} 30. Kf3 {[%clk 0:00:27]} 30...
Bf6 {[%clk 0:00:39.7]} 31. Rg1 {[%clk 0:00:25.7]} 31... Rh6 {[%clk 0:00:40.2]}
32. Bg3 {[%clk 0:00:25.1]} 32... Bxd4 {[%clk 0:00:37]} 33. Rg2 {[%clk
0:00:24.2]} 33... Nf6 {[%clk 0:00:31.8]} 34. Rh2 {[%clk 0:00:21.9]} 34... Nh5
{[%clk 0:00:21.3]} 35. Rf5 {[%clk 0:00:21.5]} 35... g6 {[%clk 0:00:18.9]} 36.
Rxd5 {[%clk 0:00:21.6]} 36... Bg7 {[%clk 0:00:18.7]} 37. Rd6 {[%clk 0:00:20.8]}
37... Kg8 {[%clk 0:00:15.5]} 38. Rxb6 {[%clk 0:00:20.7]} 38... Bd4 {[%clk
0:00:09.5]} 39. Rb8+ {[%clk 0:00:19.8]} 39... Kf7 {[%clk 0:00:10.2]} 40. Rb7+
{[%clk 0:00:19.9]} 40... Ke6 {[%clk 0:00:10.7]} 41. Rb5 {[%clk 0:00:17.4]} 41...
Rh8 {[%clk 0:00:09.9]} 42. Rxa5 {[%clk 0:00:17.2]} 42... Re8 {[%clk 0:00:09.4]}
43. Re2+ {[%clk 0:00:16.4]} 43... Kd7 {[%clk 0:00:07.9]} 44. Rxe8 {[%clk
0:00:17.3]} 44... Kxe8 {[%clk 0:00:08.8]} 45. b4 {[%clk 0:00:17.2]} 45... Ng7
{[%clk 0:00:08.8]} 46. Ke4 {[%clk 0:00:17]} 46... Bb6 {[%clk 0:00:07.1]} 47. Ra6
{[%clk 0:00:17]} 47... Bc7 {[%clk 0:00:06.9]} 48. Rxg6 {[%clk 0:00:17.1]} 48...
Nh5 {[%clk 0:00:06]} 49. Bh2 {[%clk 0:00:15.7]} 49... Kf7 {[%clk 0:00:05.5]} 50.
Rh6 {[%clk 0:00:14.8]} 50... Ng7 {[%clk 0:00:04.2]} 51. Rh7 {[%clk 0:00:15.2]}
51... Kg6 {[%clk 0:00:04.7]} 52. Rxg7+ {[%clk 0:00:16.1]} 52... Kxg7 {[%clk
0:00:05.6]} 53. a4 {[%clk 0:00:16]} 1-0

[Event "Late-Titled-Tuesday-Blitz-October-03-2023"]
[Site "Chess.com"]
[Date "2023.10.03"]
[Round "7"]
[White "as9killer2"]
[Black "Rutricks"]
[Result "1-0"]
[WhiteElo "2519"]
[BlackElo "2687"]
[TimeControl "180+1"]
[EndTime "15:14:43 PDT"]
[Termination "as9killer2 won by resignation"]

1. c4 {[%clk 0:03:00]} 1... g6 {[%clk 0:03:00.9]} 2. Nc3 {[%clk 0:02:58]} 2...
Bg7 {[%clk 0:03:01.8]} 3. g3 {[%clk 0:02:57.1]} 3... d6 {[%clk 0:03:02.7]} 4.
Bg2 {[%clk 0:02:57.4]} 4... Nf6 {[%clk 0:03:01.7]} 5. e4 {[%clk 0:02:55.7]} 5...
O-O {[%clk 0:03:02.6]} 6. Nge2 {[%clk 0:02:56.2]} 6... a6 {[%clk 0:03:01.9]} 7.
O-O {[%clk 0:02:55]} 7... c6 {[%clk 0:03:02.6]} 8. d4 {[%clk 0:02:54.2]} 8... b5
{[%clk 0:03:02.1]} 9. cxb5 {[%clk 0:02:46.5]} 9... axb5 {[%clk 0:03:02.3]} 10.
e5 {[%clk 0:02:46.7]} 10... dxe5 {[%clk 0:02:56.1]} 11. dxe5 {[%clk 0:02:45.4]}
11... Ng4 {[%clk 0:02:56.7]} 12. Qxd8 {[%clk 0:02:33.7]} 12... Rxd8 {[%clk
0:02:55.1]} 13. Nxb5 {[%clk 0:02:34]} 13... Bxe5 {[%clk 0:02:38]} 14. h3 {[%clk
0:02:28.7]} 14... Ba6 {[%clk 0:02:20.5]} 15. Nbc3 {[%clk 0:01:39.2]} 15... Bxc3
{[%clk 0:02:15]} 16. bxc3 {[%clk 0:01:39.3]} 16... Bxe2 {[%clk 0:02:15.3]} 17.
Re1 {[%clk 0:01:39.5]} 17... Ne5 {[%clk 0:01:26.6]} 18. Rxe2 {[%clk 0:01:39.3]}
18... Rd1+ {[%clk 0:01:27.3]} 19. Kh2 {[%clk 0:01:39.2]} 19... Nd3 {[%clk
0:01:28]} 20. Rxe7 {[%clk 0:01:03.8]} 20... Kf8 {[%clk 0:00:23.2]} 21. Bh6+
{[%clk 0:01:02.3]} 21... Kxe7 {[%clk 0:00:22.7]} 22. Rxd1 {[%clk 0:01:02.7]}
22... Nxf2 {[%clk 0:00:18.8]} 23. Rd2 {[%clk 0:00:57.5]} 23... Nd1 {[%clk
0:00:15.8]} 24. Rxd1 {[%clk 0:00:56.4]} 24... Rxa2 {[%clk 0:00:16.7]} 25. Kh1
{[%clk 0:00:43.7]} 25... Rc2 {[%clk 0:00:17.3]} 26. Re1+ {[%clk 0:00:36.3]}
26... Kf6 {[%clk 0:00:17.2]} 27. Rf1+ {[%clk 0:00:33.5]} 27... Ke7 {[%clk
0:00:17.2]} 28. Bg7 {[%clk 0:00:33.9]} 28... f5 {[%clk 0:00:16]} 29. Re1+ {[%clk
0:00:30.2]} 29... Kd7 {[%clk 0:00:14.5]} 30. Be5 {[%clk 0:00:29.7]} 30... Na6
{[%clk 0:00:14.5]} 31. Rd1+ {[%clk 0:00:29.2]} 31... Ke6 {[%clk 0:00:14.9]} 32.
Bh8 {[%clk 0:00:25.9]} 32... c5 {[%clk 0:00:08.5]} 33. Bd5+ {[%clk 0:00:25.7]}
33... Ke7 {[%clk 0:00:07.4]} 34. Bc4 {[%clk 0:00:25.6]} 34... Nb8 {[%clk
0:00:04.4]} 35. Rb1 {[%clk 0:00:22]} 35... Nc6 {[%clk 0:00:04.2]} 36. Rb7+
{[%clk 0:00:20.6]} 36... Kd6 {[%clk 0:00:04.8]} 37. Bg7 {[%clk 0:00:17]} 37...
Na5 {[%clk 0:00:05.1]} 38. Rb6+ {[%clk 0:00:14.2]} 38... Kc7 {[%clk 0:00:04.6]}
39. Rb5 {[%clk 0:00:06.7]} 39... Nb7 {[%clk 0:00:03.5]} 40. Bd5 {[%clk
0:00:06.4]} 40... Nd6 {[%clk 0:00:01]} 41. Rxc5+ {[%clk 0:00:06.7]} 41... Kd7
{[%clk 0:00:01.9]} 42. Be5 {[%clk 0:00:06.3]} 42... Ne8 {[%clk 0:00:01.6]} 43.
Bc6+ {[%clk 0:00:06.1]} 43... Ke7 {[%clk 0:00:02.1]} 44. Bxe8 {[%clk 0:00:06.6]}
44... Kxe8 {[%clk 0:00:03]} 45. Rc7 {[%clk 0:00:07.3]} 45... h6 {[%clk
0:00:03.1]} 46. h4 {[%clk 0:00:07.6]} 46... Re2 {[%clk 0:00:03.8]} 47. Bd4
{[%clk 0:00:07.6]} 47... g5 {[%clk 0:00:04.5]} 48. hxg5 {[%clk 0:00:07.9]} 48...
hxg5 {[%clk 0:00:05.4]} 49. Rg7 {[%clk 0:00:08.6]} 49... f4 {[%clk 0:00:06]} 50.
gxf4 {[%clk 0:00:09]} 50... gxf4 {[%clk 0:00:06.9]} 51. Rg4 {[%clk 0:00:09.5]}
51... f3 {[%clk 0:00:07.1]} 52. Rf4 {[%clk 0:00:10]} 52... f2 {[%clk 0:00:03.3]}
53. Rxf2 {[%clk 0:00:10.4]} 53... Re4 {[%clk 0:00:04.2]} 54. Rd2 {[%clk
0:00:10.4]} 54... Kd7 {[%clk 0:00:05.1]} 55. Kg2 {[%clk 0:00:10.9]} 55... Kc6
{[%clk 0:00:06]} 56. Kf3 {[%clk 0:00:11.8]} 56... Rxd4 {[%clk 0:00:06.7]} 57.
cxd4 {[%clk 0:00:12]} 1-0

[Event "Late-Titled-Tuesday-Blitz-October-03-2023"]
[Site "Chess.com"]
[Date "2023.10.03"]
[Round "7"]
[White "SaqoChess_Twitch"]
[Black "FaustinoOro"]
[Result "1-0"]
[WhiteElo "2653"]
[BlackElo "2852"]
[TimeControl "180+1"]
[EndTime "15:14:44 PDT"]
[Termination "SaqoChess_Twitch won by checkmate"]

1. d4 {[%clk 0:03:00.9]} 1... Nf6 {[%clk 0:02:59.8]} 2. c4 {[%clk 0:03:01.3]}
2... e6 {[%clk 0:02:59.5]} 3. Nc3 {[%clk 0:03:01.9]} 3... Bb4 {[%clk 0:02:58.7]}
4. e3 {[%clk 0:03:01.4]} 4... O-O {[%clk 0:02:57.8]} 5. a3 {[%clk 0:03:01.5]}
5... Bxc3+ {[%clk 0:02:54.7]} 6. bxc3 {[%clk 0:03:02.4]} 6... d6 {[%clk
0:02:53.9]} 7. Bd3 {[%clk 0:03:02.8]} 7... e5 {[%clk 0:02:52.3]} 8. f3 {[%clk
0:02:51.7]} 8... Re8 {[%clk 0:02:51.1]} 9. e4 {[%clk 0:02:52]} 9... Nc6 {[%clk
0:02:48.3]} 10. Ne2 {[%clk 0:02:49.7]} 10... Ne7 {[%clk 0:02:48.3]} 11. Kf2
{[%clk 0:02:48.8]} 11... Ng6 {[%clk 0:02:48.2]} 12. h4 {[%clk 0:02:46.3]} 12...
h6 {[%clk 0:02:42.1]} 13. h5 {[%clk 0:02:43.8]} 13... Nf8 {[%clk 0:02:42.4]} 14.
g4 {[%clk 0:02:42.9]} 14... N6h7 {[%clk 0:02:39.6]} 15. Be3 {[%clk 0:02:38.8]}
15... c6 {[%clk 0:02:35.5]} 16. Qd2 {[%clk 0:02:38.5]} 16... d5 {[%clk
0:02:22.2]} 17. cxd5 {[%clk 0:02:31.5]} 17... cxd5 {[%clk 0:02:21.7]} 18. exd5
{[%clk 0:02:27.4]} 18... Qxd5 {[%clk 0:02:17.3]} 19. c4 {[%clk 0:02:16.4]} 19...
Qd8 {[%clk 0:02:08]} 20. d5 {[%clk 0:02:15.7]} 20... Qf6 {[%clk 0:01:41.1]} 21.
Kg3 {[%clk 0:01:56.2]} 21... Qd6 {[%clk 0:01:30.4]} 22. Be4 {[%clk 0:01:52.8]}
22... Nf6 {[%clk 0:01:18.1]} 23. Nc3 {[%clk 0:01:52.9]} 23... b6 {[%clk
0:01:13.5]} 24. a4 {[%clk 0:01:52.1]} 24... Ba6 {[%clk 0:01:13.3]} 25. g5 {[%clk
0:01:25.2]} 25... hxg5 {[%clk 0:01:09.7]} 26. Bxg5 {[%clk 0:01:10.9]} 26... Bxc4
{[%clk 0:01:04.9]} 27. Rag1 {[%clk 0:01:04.5]} 27... N8h7 {[%clk 0:00:49.2]} 28.
Kf2 {[%clk 0:00:58.5]} 28... Nxe4+ {[%clk 0:00:45]} 29. Nxe4 {[%clk 0:00:16.2]}
29... Qxd5 {[%clk 0:00:32.4]} 30. Qxd5 {[%clk 0:00:16.3]} 30... Bxd5 {[%clk
0:00:33.3]} 31. Nf6+ {[%clk 0:00:16.9]} 31... Kh8 {[%clk 0:00:14.9]} 32. Nxd5
{[%clk 0:00:15.1]} 32... Rac8 {[%clk 0:00:15.3]} 33. Ne3 {[%clk 0:00:12.7]}
33... e4 {[%clk 0:00:13.3]} 34. f4 {[%clk 0:00:12]} 34... f6 {[%clk 0:00:13.2]}
35. Bh4 {[%clk 0:00:12.4]} 35... Rc5 {[%clk 0:00:13.3]} 36. h6 {[%clk
0:00:11.2]} 36... g5 {[%clk 0:00:13.5]} 37. Bg3 {[%clk 0:00:09.4]} 37... Rd8
{[%clk 0:00:13.8]} 38. Rd1 {[%clk 0:00:09.3]} 38... Rg8 {[%clk 0:00:13.6]} 39.
f5 {[%clk 0:00:09.1]} 39... Rc3 {[%clk 0:00:10.3]} 40. Rd7 {[%clk 0:00:09.2]}
40... Nf8 {[%clk 0:00:08.7]} 41. Rf7 {[%clk 0:00:08.3]} 41... Nh7 {[%clk
0:00:08.7]} 42. Rd1 {[%clk 0:00:08.1]} 42... Rd3 {[%clk 0:00:07.1]} 43. Rc1
{[%clk 0:00:06.5]} 43... Rd2+ {[%clk 0:00:06.3]} 44. Kg1 {[%clk 0:00:05.5]}
44... Rf8 {[%clk 0:00:06.7]} 45. Rxf8+ {[%clk 0:00:04]} 45... Nxf8 {[%clk
0:00:07.6]} 46. Rc7 {[%clk 0:00:04.4]} 46... Rd3 {[%clk 0:00:07.8]} 47. Kf2
{[%clk 0:00:04.2]} 47... Nd7 {[%clk 0:00:08.4]} 48. Ng4 {[%clk 0:00:04]} 48...
Rf3+ {[%clk 0:00:08.6]} 49. Kg2 {[%clk 0:00:04.1]} 49... Rd3 {[%clk 0:00:06.5]}
50. Nxf6 {[%clk 0:00:04.5]} 50... Rd2+ {[%clk 0:00:01.5]} 51. Kf1 {[%clk
0:00:04.4]} 51... Nc5 {[%clk 0:00:01.4]} 52. Rh7# {[%clk 0:00:03.5]} 1-0